{"text_format":"1","workbook":"xlsx","n_sheets":2,"sheets":["Лист1","для удаления"],"not_rendered":{"charts":0,"images":0,"macros":1,"external_links":0,"defined_names":0,"comments":0,"pivot_tables":0},"unopened":[],"bounds":{"document_bytes":16777216,"sheet_cells":100000,"rows_first":2000,"rows_last":500,"rows_between":2000,"halvings":0,"cell_chars":16384,"cell_head_chars":4096},"cells_cut":0,"cells_raw":0,"read":"whole","date_system":"1900"}

{"sheet":"Лист1","index":0,"n_rows":30,"n_cols":9,"rows_kept":30,"cut":false,"hidden":false,"merged":[]}
["колбаса мясная",{"$f":"--ISNUMBER(MATCH(A1,'для удаления'!A$1:A$8,))","v":0}]
["колбаса мясная рецепты",{"$f":"--ISNUMBER(MATCH(A2,'для удаления'!A$1:A$8,))","v":0},null,null,null,null,null,null,"колбаса мясная"]
["мясная солянка с колбасой",{"$f":"--ISNUMBER(MATCH(A3,'для удаления'!A$1:A$8,))","v":1},null,null,null,null,null,null,"колбаса мясная рецепты"]
["солянка сборная мясная с колбасой",{"$f":"--ISNUMBER(MATCH(A4,'для удаления'!A$1:A$8,))","v":0},null,null,null,null,null,null,"мясная солянка с колбасой"]
["солянка мясная с колбасой рецепт kkkjjkkjjk",{"$f":"--ISNUMBER(MATCH(A5,'для удаления'!A$1:A$8,))","v":0},null,null,null,null,null,null,"солянка сборная мясная с колбасой"]
["рецепты солянки сборной мясной с колбасой",{"$f":"--ISNUMBER(MATCH(A6,'для удаления'!A$1:A$8,))","v":1},null,null,null,null,null,null,"солянка мясная с колбасой рецепт kkkjjkkjjk"]
["солянка сборная мясная классическая с колбасой",{"$f":"--ISNUMBER(MATCH(A7,'для удаления'!A$1:A$8,))","v":0},null,null,null,null,null,null,"рецепты солянки сборной мясной с колбасой"]
["солянка мясная с колбасой рецепт классический",{"$f":"--ISNUMBER(MATCH(A8,'для удаления'!A$1:A$8,))","v":0},null,null,null,null,null,null,"солянка сборная мясная классическая с колбасой"]
["рецепт солянки сборной мясной классической с колбасой",{"$f":"--ISNUMBER(MATCH(A9,'для удаления'!A$1:A$8,))","v":1},null,null,null,null,null,null,"солянка мясная с колбасой рецепт классический"]
["колбаса мясная лавка",{"$f":"--ISNUMBER(MATCH(A10,'для удаления'!A$1:A$8,))","v":0},null,null,null,null,null,null,"рецепт солянки сборной мясной классической с колбасой"]
["солянка мясная с колбасой рецепт с фото",{"$f":"--ISNUMBER(MATCH(A11,'для удаления'!A$1:A$8,))","v":1},null,null,null,null,null,null,"колбаса мясная лавка"]
["мясная лавка сибирские колбасы",{"$f":"--ISNUMBER(MATCH(A12,'для удаления'!A$1:A$8,))","v":0},null,null,null,null,null,null,"солянка мясная с колбасой рецепт с фото"]
["колбаса мясной продукт",{"$f":"--ISNUMBER(MATCH(A13,'для удаления'!A$1:A$8,))","v":0},null,null,null,null,null,null,"мясная лавка сибирские колбасы"]
["мясная лавка сибирские колбасы омск",{"$f":"--ISNUMBER(MATCH(A14,'для удаления'!A$1:A$8,))","v":0},null,null,null,null,null,null,"колбаса мясной продукт"]
["колбаса вареная мясная",{"$f":"--ISNUMBER(MATCH(A15,'для удаления'!A$1:A$8,))","v":0},null,null,null,null,null,null,"мясная лавка сибирские колбасы омск"]
["колбаса мясной дом",{"$f":"--ISNUMBER(MATCH(A16,'для удаления'!A$1:A$8,))","v":0},null,null,null,null,null,null,"колбаса вареная мясная"]
["докторская колбаса мясной",{"$f":"--ISNUMBER(MATCH(A17,'для удаления'!A$1:A$8,))","v":1},null,null,null,null,null,null,"колбаса мясной дом"]
["колбаса мясной дом бородина",{"$f":"--ISNUMBER(MATCH(A18,'для удаления'!A$1:A$8,))","v":0},null,null,null,null,null,null,"докторская колбаса мясной"]
["домашние мясные колбасы",{"$f":"--ISNUMBER(MATCH(A19,'для удаления'!A$1:A$8,))","v":0},null,null,null,null,null,null,"колбаса мясной дом бородина"]
["колбаса мясная папа может",{"$f":"--ISNUMBER(MATCH(A20,'для удаления'!A$1:A$8,))","v":0},null,null,null,null,null,null,"домашние мясные колбасы"]
["мясная лавка сибирские колбасы омск официальный сайт",{"$f":"--ISNUMBER(MATCH(A21,'для удаления'!A$1:A$8,))","v":1},null,null,null,null,null,null,"колбаса мясная папа может"]
["мясные деликатесы колбаса",{"$f":"--ISNUMBER(MATCH(A22,'для удаления'!A$1:A$8,))","v":0},null,null,null,null,null,null,"мясная лавка сибирские колбасы омск официальный сайт"]
["салат мясной с колбасой",{"$f":"--ISNUMBER(MATCH(A23,'для удаления'!A$1:A$8,))","v":1},null,null,null,null,null,null,"мясные деликатесы колбаса"]
["состав мясных колбас",{"$f":"--ISNUMBER(MATCH(A24,'для удаления'!A$1:A$8,))","v":0},null,null,null,null,null,null,"салат мясной с колбасой"]
["колбаса докторская мясной дом бородина",{"$f":"--ISNUMBER(MATCH(A25,'для удаления'!A$1:A$8,))","v":0},null,null,null,null,null,null,"состав мясных колбас"]
["колбаса мясная стародворские колбасы",{"$f":"--ISNUMBER(MATCH(A26,'для удаления'!A$1:A$8,))","v":0},null,null,null,null,null,null,"колбаса докторская мясной дом бородина"]
["колбаса мясной дуэт",{"$f":"--ISNUMBER(MATCH(A27,'для удаления'!A$1:A$8,))","v":0},null,null,null,null,null,null,"колбаса мясная стародворские колбасы"]
["мясной салат с колбасой рецепт",{"$f":"--ISNUMBER(MATCH(A28,'для удаления'!A$1:A$8,))","v":0},null,null,null,null,null,null,"колбаса мясной дуэт"]
["производство мясных колбас",{"$f":"--ISNUMBER(MATCH(A29,'для удаления'!A$1:A$8,))","v":0},null,null,null,null,null,null,"мясной салат с колбасой рецепт"]
[null,null,null,null,null,null,null,null,"производство мясных колбас"]

{"sheet":"для удаления","index":1,"n_rows":8,"n_cols":1,"rows_kept":8,"cut":false,"hidden":false,"merged":[]}
["мясная солянка с колбасой"]
["солянка мясная с колбасой рецепт"]
["рецепты солянки сборной мясной с колбасой"]
["рецепт солянки сборной мясной классической с колбасой"]
["солянка мясная с колбасой рецепт с фото"]
["докторская колбаса мясной"]
["мясная лавка сибирские колбасы омск официальный сайт"]
["салат мясной с колбасой"]